Cogmind - Beta 14 @@@ ROGUE MODE // 2024.09.09 @ 02:51:28 // Winter2019/RPGLIKE Player: Toaster Result: Self-destructed Performance ------------- Evolutions (5) 2500 Regions Visited (8) 1600 Robots Destroyed (79) 395 Value Destroyed (3068) 3068 Prototype IDs (1) 20 Alien Tech Used (0) 0 Bonus (311) 311 TOTAL SCORE: 7894 Bonus ------- High Alert Combat Kills 11 Aligned with FarCom 300 Cogmind --------- Core Integrity 894/1550 Matter 300/300 Energy 580/580 System Corruption 0% Temperature Cool (0) Movement Walking (120) Location -5/Factory Parts ------- > --- POWER (3) -------- Nuclear Core Improved Deuterium Engine Micro Nuclear Core > --- PROPULSION (4) --- Flexi-carbon Leg Armored Leg Armored Leg Armored Leg > --- UTILITY (5) ------ Improved Heat Sink Advanced Targeting Computer Kinecellerator Advanced ECM Suite Shield Generator > --- WEAPON (3) ------- Minigun Heavy Machine Gun Advanced Assault Cannon > --- INVENTORY (1) ---- Hardlight Generator Peak State ------------ > --- POWER ------------ Nuclear Core Improved Deuterium Engine Micro Nuclear Core > --- PROPULSION ------- Flexi-carbon Leg Flexi-carbon Leg Armored Leg Armored Leg > --- UTILITY ---------- Improved Heat Sink Advanced Targeting Computer Kinecellerator Advanced ECM Suite Shield Generator > --- WEAPON ----------- Minigun Heavy Machine Gun Advanced Assault Cannon > --- INVENTORY -------- Hardlight Generator [Rating: 59] Favorites ----------- Power Light Ion Engine Engine Light Ion Engine Power Core Nuclear Core Propulsion Improved Treads Treads Improved Treads Leg Flexi-carbon Leg Wheel Armored Huge Wheel Flight Unit Flight Unit Utility Visual Processing Unit Device Advanced ECM Suite Storage Small Matter Pod Processor Visual Processing Unit Weapon AWS/Autocannon Energy Cannon EM Pulse Cannon Ballistic Gun Minigun Ballistic Cannon AWS/Autocannon Build | -11 -10 -10 -10 -9 -8 -7 -6 -5 ------- Run | Yrd Mat Min Exi Min Mat Fac Fac Fac Slots Evolved 11 | 1 1 . 1 1 4 3 . . Power 2 | . . . . . 1 1 . . Propulsion 3 | . 1 . . . 2 . . . Utility 4 | . . . . 1 1 2 . . Weapon 2 | 1 . . 1 . . . . . Parts Attached 51 | 4 6 3 1 4 7 12 11 3 Power 9 | 1 . 1 . 1 1 2 3 . Engine 6 | 1 . 1 . 1 . 1 2 . Core 3 | . . . . . 1 1 1 . Reactor . | . . . . . . . . . Propulsion 17 | 1 3 . . 2 4 . 4 3 Treads 4 | . . . . . 4 . . . Leg 9 | 1 . . . 1 . . 4 3 Wheel 1 | . . . . 1 . . . . Hover . | . . . . . . . . . Flight 3 | . 3 . . . . . . . Utility 12 | . 2 . . 1 2 4 3 . Device 9 | . . . . 1 1 4 3 . Storage 1 | . 1 . . . . . . . Processor 2 | . 1 . . . 1 . . . Hackware . | . . . . . . . . . Protection . | . . . . . . . . . Artifact . | . . . . . . . . . Weapon 13 | 2 1 2 1 . . 6 1 . Energy Gun . | . . . . . . . . . Energy Cannon 2 | . . . . . . 2 . . Ballistic Gun 6 | 2 . 2 . . . 1 1 . Ballistic Cannon 5 | . 1 . 1 . . 3 . . Launcher . | . . . . . . . . . Special Weapon . | . . . . . . . . . Impact Weapon . | . . . . . . . . . Slashing Weapon . | . . . . . . . . . Piercing Weapon . | . . . . . . . . . Special Melee Weapon . | . . . . . . . . . Unidentified Prototypes 1 | . . . 1 . . . . . Corrupted Parts 1 | . . . . 1 . . . . System Corruption 4 | . . . . 4 . . . . Parts Lost . | . . . . . . . . . Power . | . . . . . . . . . Propulsion . | . . . . . . . . . Utility . | . . . . . . . . . Weapon . | . . . . . . . . . Highest Loss Streak . | . . . . . . . . . To Critical Strikes . | . . . . . . . . . Average Slot Usage (%) 69 | . 82 95 59 36 71 89 91 100 Engine 10 | . 17 16 14 7 9 12 6 6 Core 5 | . . . . . 9 8 12 13 Treads 7 | . . . . . 4 28 8 . Leg 4 | . 5 . . . . . 16 26 Wheel 1 | . . . . . 8 . . . Flight 3 | . 23 33 9 . . . . . Device 10 | . . . . . 10 19 26 26 Processor 10 | . 3 16 14 13 17 6 6 6 Ballistic Gun 4 | . 26 11 4 . . . 6 13 Ballistic Cannon 9 | . 4 16 14 13 9 6 6 6 Peak Build Rating 59 | 4 6 7 35 45 51 53 56 59 Average Rating 36 | 2 4 6 25 33 50 42 44 58 On Entrance 26 | . 4 6 7 33 45 51 39 55 Naked Turns . | . . . . . . . . . Heaviest Build 82 | 5 7 7 63 66 75 82 47 47 Greatest Support 97 | 10 13 13 13 33 97 97 97 77 Greatest Overweight (x) 7 | . . . 7 7 2 . 1 1 Average Overweight (x) 1 | . . . 1 6 1 . . . Largest Inventory Capacity 1 | 1 1 1 1 1 1 1 1 1 Average Capacity . | . 1 1 1 1 1 1 1 1 Most Carried 1 | 1 1 1 1 1 1 1 1 1 Average Carried . | . . . . . . . . 1 Final Capacity 1 | 1 1 1 1 1 1 1 1 1 Final Carried 1 | . 1 1 . 1 1 . 1 1 Class Distribution -------------------- 36% | Gunner 28% | Skirmisher 19% | Mutant 13% | Scavenger-Mutant Dominant Class ---------------- Mutant | -10/Materials Mutant | -10/Mines Gunner | -10/Exiles Skirmisher | -9/Mines Gunner | -8/Materials Gunner | -7/Factory Scavenger-Mutant | -6/Factory Gunner | -5/Factory Resources | -11 -10 -10 -10 -9 -8 -7 -6 -5 ----------- Run | Yrd Mat Min Exi Min Mat Fac Fac Fac Matter Collected 1675 | 240 196 78 . 25 56 320 563 197 Remotely . | . . . . . . . . . Salvage Created 2424 | . 333 111 . 153 453 573 626 175 Parts 139 | . 30 12 . 2 28 27 28 12 Haulers Intercepted 1 | . . . . . . . . 1 Recyclers Shooed 3 | . 1 . . . . 1 1 . Parts Field Recycled . | . . . . . . . . . Retrieved Matter . | . . . . . . . . . Parts Self-Destructed . | . . . . . . . . . Prevented . | . . . . . . . . . Kills | -11 -10 -10 -10 -9 -8 -7 -6 -5 ------- Run | Yrd Mat Min Exi Min Mat Fac Fac Fac Combat Hostiles Destroyed 83 | . 9 5 . 21 18 16 13 1 Guns 21 | . 9 2 . . . . 9 1 Cannons 61 | . . 3 . 20 18 16 4 . Classes Destroyed 14 | . 3 . . 2 4 3 1 1 Builder 2 | . . . . . 1 . 1 . Hauler 1 | . . . . . . . . 1 Recycler 1 | . . . . . . . 1 . Operator 3 | . . . . . . 1 2 . Watcher 8 | . 3 . . . 3 . . 2 Swarmer 12 | . 3 3 . . 3 . 3 . Grunt 34 | . 6 2 . . 10 11 5 . Brawler 3 | . . . . . . 3 . . Sentry 4 | . . . . . 2 . 2 . Demolisher 2 | . . . . 2 . . . . Specialist 2 | . . . . . 2 . . . Hunter 3 | . . . . . 1 . 1 1 Programmer 4 | . . . . . . 2 2 . Assembled 19 | . . . . 19 . . . . Best Kill Streak 20 | . 4 3 . 20 7 4 3 3 Combat Bots Only 20 | . 2 3 . 20 7 4 3 1 Max Kills in Single Turn 2 | . 1 1 . 1 1 1 2 1 Gunslinging . | . . . . . . . . . Exploded . | . . . . . . . . . Melee . | . . . . . . . . . Uniques/NPCs Destroyed . | . . . . . . . . . Combat | -11 -10 -10 -10 -9 -8 -7 -6 -5 -------- Run | Yrd Mat Min Exi Min Mat Fac Fac Fac Hostile Shots Fired 358 | . 40 15 . 47 78 55 117 6 Missed 110 | . 10 7 . 16 25 12 39 1 Damage Taken 3068 | . 323 107 . 542 704 556 773 63 Core 2448 | . 262 90 . 437 578 440 592 49 Absorbed by Shields 455 | . . . . . . 134 298 23 Redirected to Core 1999 | . 181 57 . 359 422 371 560 49 Ignored by Resistances 182 | . . . . 13 54 31 77 7 Core Remaining (%) 61 | 100 . . . 49 42 55 60 . Volleys Fired 140 | . 42 12 . . . 31 48 7 Largest 3 | . 2 2 . . . 3 2 3 Hottest 174 | . 40 55 . . . 174 73 103 Shots Fired 359 | . 83 17 . 33 46 63 96 21 Gun 149 | . 82 5 . . . . 48 14 Cannon 210 | . 1 12 . 33 46 63 48 7 Launcher . | . . . . . . . . . Special . | . . . . . . . . . Kinetic 347 | . 83 17 . 33 46 51 96 21 Thermal . | . . . . . . . . . Explosive . | . . . . . . . . . Electromagnetic 12 | . . . . . . 12 . . Robot Hit Streak 25 | . 13 5 . 11 17 25 23 11 Robot Miss Streak 3 | . 3 1 . 2 1 2 3 2 Penetration Max . | . . . . . . . . . Secondary Targets 1 | . 1 . . . . . . . Max Gunslinging Chain 1 | . 1 . . . . . . . Autonomous 99 | . . . . 33 46 20 . . Shots Hit Robots 283 | . 63 12 . 27 43 53 71 14 Core Hits 123 | . 25 6 . 15 17 23 30 7 Critical Kills . | . . . . . . . . . Critical Parts Destroyed . | . . . . . . . . . Critical Strikes 8 | . . . . 1 4 3 . . Blast 8 | . . . . 1 4 3 . . Melee Attacks . | . . . . . . . . . Impact . | . . . . . . . . . Slashing . | . . . . . . . . . Piercing . | . . . . . . . . . Sneak Attacks . | . . . . . . . . . Combat Hostiles . | . . . . . . . . . Follow-up Attacks . | . . . . . . . . . Damage Inflicted 10903 | . 543 156 . 2152 3430 2568 1731 323 Guns 1431 | . 513 37 . . . . 697 184 Cannons 9347 | . 15 119 . 2152 3416 2472 1034 139 Explosions 95 | . . . . . . 95 . . Melee . | . . . . . . . . . Ramming 30 | . 15 . . . 14 1 . . Kinetic 10531 | . 528 156 . 2152 3416 2225 1731 323 Thermal 95 | . . . . . . 95 . . Explosive . | . . . . . . . . . Electromagnetic 247 | . . . . . . 247 . . Impact . | . . . . . . . . . Slashing . | . . . . . . . . . Piercing . | . . . . . . . . . Highest Corruption 5 | . . . . 4 . 5 . . Average Corruption 3 | . . . . 4 . 3 . . Corruption Purged 5 | . . . . . . 5 . . Corruption Blocked . | . . . . . . . . . Effects 11 | . . . . 1 . 10 . . Message Errors 5 | . . . . . . 5 . . Matter Fused 1 | . . . . 1 . . . . Heat Flow Errors 1 | . . . . . . 1 . . Energy Discharges 1 | . . . . . . 1 . . Data Loss (minor) 1 | . . . . . . 1 . . Misfires 1 | . . . . . . 1 . . Alerts 1 | . . . . . . 1 . . Overload Shots . | . . . . . . . . . Overflow Damage 1020 | . . 1 . 355 404 237 15 8 Projectiles 1020 | . . 1 . 355 404 237 15 8 Explosions . | . . . . . . . . . Melee . | . . . . . . . . . Knockbacks 38 | . 1 . . 6 15 10 6 . Impact 1 | . 1 . . . . . . . Kinetic 31 | . . . . 5 12 8 6 . Secondary 6 | . . . . 1 3 2 . . Self-Inflicted Damage 13 | . 7 . . . 6 . . . Shots . | . . . . . . . . . Rammed 4 | . 1 . . . 2 1 . . Targets Rammed 4 | . 1 . . . 2 1 . . Kicked . | . . . . . . . . . Crushed . | . . . . . . . . . Highest Temperature 375 | . 22 36 . . 14 375 105 64 Average Temperature 79 | . 8 18 . . 9 154 15 30 Received Heat Transfer 909 | . 147 51 . 60 198 255 198 . Effects 8 | . . . . . . 8 . . Shutdowns 5 | . . . . . . 5 . . Energy Bleed 1 | . . . . . . 1 . . Damage (minor) 2 | . . . . . . 2 . . Siege Activations . | . . . . . . . . . Robots Corrupted 1 | . . . . 1 . . . . Combat Hostiles 1 | . . . . 1 . . . . Parts Fried 1 | . . . . . . 1 . . Impact Corruptions 3 | . . . . 2 1 . . . Robots Melted . | . . . . . . . . . Combat Hostiles . | . . . . . . . . . Parts Melted . | . . . . . . . . . Heat Transferred 100 | . . . . . . 100 . . Parts Sabotaged . | . . . . . . . . . Parts Stolen . | . . . . . . . . . Parts Stripped . | . . . . . . . . . Power Chain Reactions 1 | . . . . . . 1 . . Alert | -11 -10 -10 -10 -9 -8 -7 -6 -5 ------- Run | Yrd Mat Min Exi Min Mat Fac Fac Fac Peak Influence 409 | . 298 252 . 50 409 308 266 181 Initial 117 | . . 115 . . . 117 86 83 Average 111 | . 190 176 . 1 178 177 134 125 Maximum Alert Level 2 | . 1 1 . . 2 1 1 . Low Security (%) 82 | 100 43 84 . 100 60 67 93 100 Level 1 15 | . 56 15 . . 23 32 6 . Level 2 2 | . . . . . 16 . . . Level 3 . | . . . . . . . . . Level 4 . | . . . . . . . . . Level 5 . | . . . . . . . . . High Security . | . . . . . . . . . Max Security . | . . . . . . . . . Squads Dispatched 12 | . 3 . . . 1 4 4 . Investigation 3 | . 2 . . . . . 1 . Extermination 4 | . . . . . . 3 1 . Reinforcement 5 | . 1 . . . 1 1 2 . Assault . | . . . . . . . . . Garrison . | . . . . . . . . . Intercept . | . . . . . . . . . Searches Triggered . | . . . . . . . . . Construction Impeded 1 | . . . . . . . 1 . Haulers Reinforced . | . . . . . . . . . Active Scanning Responses . | . . . . . . . . . Cargo Convoy Interrupts . | . . . . . . . . . Stealth | -11 -10 -10 -10 -9 -8 -7 -6 -5 --------- Run | Yrd Mat Min Exi Min Mat Fac Fac Fac Distress Signals 3 | . 1 . . . 1 . 1 . Communications Jammed . | . . . . . . . . . Distress Signals . | . . . . . . . . . Times Spotted 106 | . 14 5 . 20 25 17 21 4 Peak Tracking Total 9 | . 4 2 . 9 4 3 4 1 Tactical Retreats 8 | . . . . . 2 4 2 . Traps | -11 -10 -10 -10 -9 -8 -7 -6 -5 ------- Run | Yrd Mat Min Exi Min Mat Fac Fac Fac Traps Triggered 6 | . 2 . . 2 . 1 1 . Indirectly . | . . . . . . . . . Trap Hack Attempts . | . . . . . . . . . Triggered . | . . . . . . . . . Disarmed . | . . . . . . . . . Reprogrammed 6 | . . . . . 6 . . . Reused 1 | . . . . . 1 . . . Traps Extracted . | . . . . . . . . . Installed . | . . . . . . . . . Triggered 1 | . . . . . 1 . . . Machines | -11 -10 -10 -10 -9 -8 -7 -6 -5 ---------- Run | Yrd Mat Min Exi Min Mat Fac Fac Fac Machines Disabled 8 | . . 1 . . 1 5 . 1 Max in Single Turn 4 | . . 1 . . 1 4 . 1 Machines Repaired . | . . . . . . . . . Machines Dismantled . | . . . . . . . . . Machines Sabotaged . | . . . . . . . . . Overloaded Fab Kills . | . . . . . . . . . Hacking | -11 -10 -10 -10 -9 -8 -7 -6 -5 --------- Run | Yrd Mat Min Exi Min Mat Fac Fac Fac Machines Accessed 13 | . 4 . 1 1 5 . 2 . Terminals 10 | . 3 . . . 5 . 2 . Fabricators . | . . . . . . . . . Repair Stations . | . . . . . . . . . Recycling Units 1 | . 1 . . . . . . . Scanalyzers . | . . . . . . . . . Garrison Access . | . . . . . . . . . Total Hacks 19 | . 7 . 1 1 8 . 2 . Successful 11 | . 4 . 1 1 3 . 2 . Failed 8 | . 3 . . . 5 . . . Catastrophic . | . . . . . . . . . Database Lockouts . | . . . . . . . . . Manual 1 | . . . 1 . . . . . Terminals 15 | . 5 . . . 8 . 2 . Fabricators . | . . . . . . . . . Repair Stations . | . . . . . . . . . Recycling Units 2 | . 2 . . . . . . . Scanalyzers . | . . . . . . . . . Garrison Access . | . . . . . . . . . Terminal Hacks 10 | . 3 . 1 1 3 . 2 . Record 1 | . . . 1 . . . . . Open Door 1 | . . . . 1 . . . . Level Access Points 1 | . 1 . . . . . . . Locate Traps 3 | . 1 . . . 1 . 1 . Reprogram Traps 1 | . . . . . 1 . . . Hauler Manifests 2 | . 1 . . . . . 1 . Zone Layout 1 | . . . . . 1 . . . Fabricator Hacks . | . . . . . . . . . Repair Station Hacks . | . . . . . . . . . Recycling Unit Hacks 1 | . 1 . . . . . . . Retrieve Components 1 | . 1 . . . . . . . Scanalyzer . | . . . . . . . . . Garrison Access Hacks . | . . . . . . . . . Unauthorized Hacks . | . . . . . . . . . Terminals . | . . . . . . . . . Fabricators . | . . . . . . . . . Repair Stations . | . . . . . . . . . Recycling Units . | . . . . . . . . . Scanalyzers . | . . . . . . . . . Garrison Access . | . . . . . . . . . Data Cores Recovered 3 | . 1 . . . . 1 1 . Used 1 | . . . . . . . 1 . Hacking Detections 6 | . 2 . . . 3 . 1 . Full Trace Events . | . . . . . . . . . Feedback Events . | . . . . . . . . . Feedback Blocked . | . . . . . . . . . Robot Schematics Acquired . | . . . . . . . . . Robots Built . | . . . . . . . . . Authchips . | . . . . . . . . . Time . | . . . . . . . . . Total Robot Build Rating . | . . . . . . . . . Part Schematics Acquired . | . . . . . . . . . Parts Built . | . . . . . . . . . Authchips . | . . . . . . . . . Time . | . . . . . . . . . Total Part Build Rating . | . . . . . . . . . Parts Repaired . | . . . . . . . . . Time . | . . . . . . . . . Parts Recycled . | . . . . . . . . . Recycled Matter . | . . . . . . . . . Retrieved Matter . | . . . . . . . . . Retrieved Components 3 | . 3 . . . . . . . Parts Scanalyzed . | . . . . . . . . . Part Schematics Acquired . | . . . . . . . . . Parts Damaged . | . . . . . . . . . Bothacking | -11 -10 -10 -10 -9 -8 -7 -6 -5 ------------ Run | Yrd Mat Min Exi Min Mat Fac Fac Fac Used RIF Installer . | . . . . . . . . . Robots Hacked . | . . . . . . . . . Non-combat . | . . . . . . . . . Combat . | . . . . . . . . . Robot Hacks Applied . | . . . . . . . . . Relay Couplers Released . | . . . . . . . . . Fabnet Peak Effective % . | . . . . . . . . . Robots Rewired . | . . . . . . . . . Allies Hacked . | . . . . . . . . . Hacks Repelled . | . . . . . . . . . Allies | -11 -10 -10 -10 -9 -8 -7 -6 -5 -------- Run | Yrd Mat Min Exi Min Mat Fac Fac Fac Total Allies 1 | . . 1 . . . . . . Largest Group 1 | . . 1 . . . . . . Highest-Rated Group 31 | . . 31 . . . . . . Highest-Rated Ally 31 | . . 31 . . . . . . Total Orders . | . . . . . . . . . Ally Attacks . | . . . . . . . . . Total Damage . | . . . . . . . . . Kills . | . . . . . . . . . Allies Corrupted . | . . . . . . . . . Allies Melted . | . . . . . . . . . Intel | -11 -10 -10 -10 -9 -8 -7 -6 -5 ------- Run | Yrd Mat Min Exi Min Mat Fac Fac Fac Robot Analysis Total . | . . . . . . . . . Derelict Logs Recovered 3 | . . 1 . 2 . . . . Drone Launches . | . . . . . . . . . Drone Recoveries . | . . . . . . . . . Exploration | -11 -10 -10 -10 -9 -8 -7 -6 -5 ------------- Run | Yrd Mat Min Exi Min Mat Fac Fac Fac Turns Passed 6787 | 37 379 177 813 1846 800 1268 1071 396 Spaces Moved 4542 | 51 621 368 791 504 550 700 666 291 Core 704 | 44 78 . 143 439 . . . . Treads 940 | . . . . . 64 700 176 . Legs 788 | 7 . . . . . . 490 291 Wheels 551 | . . . . 65 486 . . . Hover . | . . . . . . . . . Flight 1559 | . 543 368 648 . . . . . Fastest Speed 37 | 50 37 37 37 115 115 160 120 120 Average Speed 134 | 59 38 37 102 363 134 160 130 120 Slowest Speed 400 | 120 50 37 400 400 320 160 190 190 Overloaded Moves . | . . . . . . . . . Propulsion Burnouts . | . . . . . . . . . Robots Hopped 5 | . 4 1 . . . . . . Cave-ins Triggered . | . . . . . . . . . Exploration Rate (%) 44 | 3 68 69 94 82 51 13 12 8 Regions Visited 8 Branch Regions 3 Pre-discovered Areas 1 | . . . . 1 . . . . Known Exits Taken 1 | . . . . . 1 . . . Unknown Exits Taken 7 | 1 1 1 1 1 . 1 1 . Scrap Searched 3 | . . 1 . 2 . . . . Spaces Dug . | . . . . . . . . . Terrain Destroyed 27 | . . . . 7 3 7 10 . Melee . | . . . . . . . . . Projectile 27 | . . . . 7 3 7 10 . AOE . | . . . . . . . . . Terrain Rammed . | . . . . . . . . . Walls Destroyed . | . . . . . . . . . Machines Disabled . | . . . . . . . . . Actions | -11 -10 -10 -10 -9 -8 -7 -6 -5 --------- Run | Yrd Mat Min Exi Min Mat Fac Fac Fac Total 4974 | 56 690 392 798 518 608 810 779 323 Wait 98 | . 3 2 . . 17 31 26 19 Move 4524 | 50 612 365 790 503 549 699 665 291 Hop 5 | . 4 1 . . . . . . Pick Up 21 | 2 2 3 . 3 4 5 2 . Fast Attach 30 | 2 3 1 1 4 5 4 7 3 Attach 14 | 2 2 . . . 2 7 1 . Detach 9 | . 3 . 2 . 1 2 1 . Swap 7 | . 1 2 . . . 1 3 . Drop 35 | . 4 4 5 3 3 5 8 3 Fire 140 | . 42 12 . . . 31 48 7 Melee . | . . . . . . . . . Ram 3 | . 1 . . . 2 . . . Kick . | . . . . . . . . . Crush 1 | . . . . . . 1 . . Escape Stasis . | . . . . . . . . . Rewire . | . . . . . . . . . Trap . | . . . . . . . . . Miscellaneous 87 | . 13 2 . 5 25 24 18 . Route ------- -11/Scrapyard -10/Materials (discovered 5 exits: *Mat x3 / [*Min x2]) -10/Mines (discovered 2 exits: *Mat / *Exi) -10/Exiles (discovered 2 exits: *Min x2) -9/Mines (discovered 2 exits: *Mat x2) -8/Materials (discovered 3 exits: *Fac x3) -7/Factory -6/Factory -5/Factory History --------- Turn | Location | Event 7 | -11/Scrapyard | Discovered new exit (range 16) 21 | -11/Scrapyard | Upgraded with Weapon slot (x1) 38 | -11/Scrapyard | Entered Materials 44 | -10/Materials | Discovered new exit (range 14) 141 | -10/Materials | Upgraded with Propulsion slot (x1) 165 | -10/Materials | Discovered new exit (range 10) 204 | -10/Materials | Identified exit to Materials 301 | -10/Materials | Build established: Mutant 417 | -10/Materials | Entered Mines 419 | -10/Mines | Reached level 2 426 | -10/Mines | Received a Rocket Launcher from a helpful Derelict 468 | -10/Mines | Learned Materials security intel 494 | -10/Mines | Received a Mining Laser from a helpful Derelict 573 | -10/Mines | Discovered exit to Materials (range 8) 592 | -10/Mines | Deemed a non-threat by the Exiles lab entrance 592 | -10/Mines | Discovered new exit (range 5) 594 | -10/Mines | Entered Exiles 603 | -10/Exiles | Discovered new exit (range 14) 627 | -10/Exiles | Met 8R-AWN 635 | -10/Exiles | Met EX-HEX 650 | -10/Exiles | Met EX-DEC 678 | -10/Exiles | Visited The Gauntlet 742 | -10/Exiles | Discovered new exit (range 14) 774 | -10/Exiles | Met EX-BIN 820 | -10/Exiles | Aligned with FarCom system 820 | -10/Exiles | Given EX-Vault access code 831 | -10/Exiles | Opened EX-Vault 834 | -10/Exiles | Upgraded with Weapon slot (x1) 836 | -10/Exiles | Found Prototype Ballistic Cannon 836 | -10/Exiles | Identified AWS/Autocannon 923 | -10/Exiles | Warned to stay clear of 0b10 Research branches 1145 | -10/Exiles | Build established: Gunner 1407 | -10/Exiles | Left Exiles lab with AWS/Autocannon 1407 | -10/Exiles | Entered Mines 1409 | -9/Mines | Reached level 3 1611 | -9/Mines | Learned location of 1 exit from Materials 1696 | -9/Mines | Build established: Skirmisher 1744 | -9/Mines | Assembled infested the area 1749 | -9/Mines | Assisted by a Guerilla fighting off Assembled 1797 | -9/Mines | Core integrity fell below 50% 1868 | -9/Mines | Destroyed 20 combat bots 2719 | -9/Mines | Discovered new exit (range 15) 3153 | -9/Mines | Met a Derelict who couldn't figure out how to use a Trap Extractor 3181 | -9/Mines | Upgraded with Utility slot (x1) 3240 | -9/Mines | Discovered new exit (range 10) 3253 | -9/Mines | Entered Materials 3254 | -8/Materials | Identified exit to Factory 3254 | -8/Materials | Core integrity fell below 50% 3255 | -8/Materials | Reached level 4 3274 | -8/Materials | Upgraded with Power slot (x1) 3317 | -8/Materials | Upgraded with Utility slot (x1) 3618 | -8/Materials | Build established: Gunner 3623 | -8/Materials | Discovered exit to Factory (range 18) 3748 | -8/Materials | Reached level 5 3866 | -8/Materials | Destroyed 7 combat bots 3936 | -8/Materials | Upgraded with Propulsion slot (x1) 3953 | -8/Materials | Upgraded with Propulsion slot (x1) 4016 | -8/Materials | Discovered exit to Factory (range 17) 4053 | -8/Materials | Entered Factory 4054 | -7/Factory | Core integrity fell below 50% 4055 | -7/Factory | Reached level 6 4055 | -7/Factory | Upgraded with Power slot (x1) 4304 | -7/Factory | Reached level 7 4478 | -7/Factory | AWS/Autocannon suddenly broke down 4595 | -7/Factory | Upgraded with Utility slot (x1) 4791 | -7/Factory | Build established: Mutant 4946 | -7/Factory | Reached level 8 4953 | -7/Factory | Upgraded with Utility slot (x1) 5107 | -7/Factory | Discovered new exit (range 14) 5122 | -7/Factory | Build established: Gunner 5321 | -7/Factory | Entered another Factory area 5323 | -6/Factory | Reached level 9 5521 | -6/Factory | Build established: Mutant 5573 | -6/Factory | Core integrity fell below 50% 5710 | -6/Factory | Reached level 10 5774 | -6/Factory | Spotted B-75 Beast 5935 | -6/Factory | Build established: Scavenger-Mutant 6117 | -6/Factory | Discovered new exit (range 9) 6392 | -6/Factory | Entered another Factory area 6394 | -5/Factory | Reached level 11 6753 | -5/Factory | Build established: Gunner 6788 | -5/Factory | Self-destructed Last Messages --------------- 06634_ K-01 Serf collects debris. 06638_ R-10 Processor collects Imp. Hover Unit. 06640_ Acquired 21 matter. 06641_ R-10 Processor collects Lgt. Deuterium Engine. 06641_ K-01 Serf collects debris. 06644_ A-15 Conveyor destroyed. 06645_ R-10 Processor collects Imp. Melee Analysis Suite. 06645_ K-01 Serf cleans the Fusion Modulator. 06645_ K-01 Serf collects debris. 06647_ Acquired 4 matter. 06648_ R-10 Processor collects Imp. Melee Analysis Suite. 06648_ Acquired 6 matter. 06649_ R-10 Processor collects Imp. Field Recycling Unit. 06650_ Acquired 19 matter. 06651_ R-10 Processor collects Med. Treads. 06651_ K-01 Serf cleans the Fusion Modulator. 06653_ K-01 Serf collects debris. 06655_ U-05 Engineer builds a Door. 06658_ R-10 Processor collects Med. Treads. 06659_ K-01 Serf cleans the Fusion Modulator. Map ----- +----------------------------------------------------+ | ?????????????????????????????# #?????????????? | | ?????????????????????????????# #?????????????? | | ?????????????????????????????# #????########## | | ?????????????????????????????# #????? | | ?????????????????????????????# #????? "" | | ?????????????????????????????# #?????? !!! "? | | ?????????????????????????????# #?????? !! ? | | ?????????????????????????????# #??????? !! ?? | | ?????????????????????????????# #??????? ?? | | ?????????????????????????????# #???????? ??? | | ?????????????????????????????# #???????? ??? | | ???????????????|??????######## ##########+#### | | ?????????????? "????# | | ?????????????? """??# | | ?????????# """ # | | ?????????# + | | ?????????# # | | ?????????# ! ??# ##########+########### | | ?????????###Y########## #???# ! # | | ???????????????# #???# # "" | | ???????????????# #???# """""" # ""R | | ???????????????# #???# """""" # "" | | ???????????????# #???# """""" # | | ???????????????# #???# """""" # | | ???????????????# ###+######## ] # | | ????????######## # @ ## """""" # | | ????????# # "" ## """""" # | | ????????# #!] """ #??"""""" ! # | | ????????# #][ S" #??"""""" # | | ????????# #] """ #??? # | | ????????# # ! """ #??################ | | ????????# # #?????????????????? | | ????????# # =#?????????????????? | | ????????# ###################?????????? | | ????????# # #?????????? | | ????????# == # "" #?????????? | | ????????# """ = """ # """#########?? | | ????????# """ [ """ # S"# ! #?? | | ????????# """ """ # """# ### | | ????????# # """# | | ????????######## """ """ """ / # | | ???????????????# """ """ """ # """ # % | | ???????????????# """ """ """ # """ # ### | | ???????????????# # """ # ??? | | ???????????????# # ## #??? | | ???????????????##########+####+########## ###? | | ???????????????????# #???????# ?? | | ???????????????????# #???????# ^ #??? | | ???????????????????# """ """ #???????# #??? | | ???????????????????# """ """ ######### #??? | +----------------------------------------------------+ Best States ------------- Heat Dissipation 51 Energy Generation 40 Energy Capacity 580 Matter Stores 300 Matter Capacity 350 Sight Range 19 Terrain Scan Density 10 ECM Strength 2 Resistance: KI 5 Resistance: TH 5 Evasion (%) 62 Targeting Accuracy 8 Recoil Reduction 4 Kinecelleration 30 Item Schematics ----------------- None Robot Schematics ------------------ None Fabricated ------------ Nothing Alien Tech Used ----------------- None Achievements -------------- Exterminator Killing Spree Challenges ------------ None RPGLIKE | -11 -10 -10 -10 -9 -8 -7 -6 -5 --------- Run | Yrd Mat Min Exi Min Mat Fac Fac Fac Levels Raised 10 | . . 1 . 1 2 3 2 1 XP Earned 19320 | 3000 1295 1185 350 750 3885 3825 3200 1830 XP Spent 16480 | 850 2100 . 800 1025 3925 3420 4360 . Upgrades 46 | 3 5 . 1 8 7 5 17 . Power Slot 2 | . . . . . 1 1 . . Propulsion Slot 3 | . 1 . . . 2 . . . Utility Slot 4 | . . . . 1 1 2 . . Weapon Slot 2 | 1 . . 1 . . . . . Core Integrity 19 | . . . . 5 . . 14 . Heat Dissipation 2 | . . . . . . 2 . . Energy Generation 1 | . . . . . 1 . . . Energy Storage 2 | . . . . . 2 . . . Mass Support 1 | 1 . . . . . . . . Inventory Capacity 1 | 1 . . . . . . . . Sight Range 1 | . 1 . . . . . . . Ranged Accuracy 6 | . 3 . . . . . 3 . KI Resistance % 1 | . . . . 1 . . . . TH Resistance % 1 | . . . . 1 . . . . Protomatter Created 690 | . 99 13 . 25 208 224 121 . Integrity Restored 1792 | . 262 39 . 60 519 549 363 . Core 1792 | . 262 39 . 60 519 549 363 . Protomatter Decayed 64 | . 11 . . . 43 10 . . Game ------ Seed AmuletSurveybotDrivehammer Manual? 0 Play Time 01:05:24 Cumulative 38.9 hours Start 2024.08.25 @ 05:10:13 End 2024.09.09 @ 02:51:28 Sessions 3 Manual Loads 0 Difficulty Rogue Special Mode Winter2019/RPGLIKE Game No. 18 Rogue 14 Adventurer 4 Explorer 0 Win Type - Total 1 Types 1/0/0/0/0/0/0/0/0 Lore% 16 Gallery% 29 Achievement% 37 Wizard Run 0 Options --------- Layout 0 ASCII 0 Keyboard 0 Movement Arrows Keybinds 0 Fullscreen 2 Font 32/SmallcapsGlow Map View 88x55 Zoom Use 0% Tactical HUD 1 Map Filters NONE Filters NONE Steam 1 RUN: bf071ddc-2e62-4ff2-802e-1960e492c31b